[Event "*** Titled Tuesday Blitz"]
[Site "Chess.com"]
[Date "2021.04.06"]
[Round "7"]
[White "ajdemipopushi"]
[Black "enriquetejedor"]
[Result "0-1"]
[WhiteElo "2433"]
[BlackElo "2596"]
[TimeControl "180+1"]
[EndTime "11:18:55 PDT"]
[Termination "enriquetejedor won by resignation"]

1. Nf3 {[%clk 0:03:00.9]} 1... d6 {[%clk 0:02:38.4]} 2. g3 {[%clk 0:03:00.2]}
2... e5 {[%clk 0:02:38.2]} 3. c4 {[%clk 0:02:59.8]} 3... Nc6 {[%clk 0:02:38.4]}
4. Bg2 {[%clk 0:02:59.7]} 4... g6 {[%clk 0:02:38.9]} 5. d4 {[%clk 0:02:58]} 5...
Bg7 {[%clk 0:02:39.8]} 6. d5 {[%clk 0:02:54.2]} 6... Nce7 {[%clk 0:02:40.1]} 7.
O-O {[%clk 0:02:51.1]} 7... f5 {[%clk 0:02:36.2]} 8. Nc3 {[%clk 0:02:50.2]} 8...
Nf6 {[%clk 0:02:36.2]} 9. Ng5 {[%clk 0:02:25.9]} 9... O-O {[%clk 0:02:36.2]} 10.
e4 {[%clk 0:02:17.7]} 10... f4 {[%clk 0:01:28.1]} 11. gxf4 {[%clk 0:02:17.2]}
11... Nh5 {[%clk 0:01:01.2]} 12. f5 {[%clk 0:01:58.8]} 12... Nf4 {[%clk
0:01:01]} 13. Ne6 {[%clk 0:01:35.7]} 13... Bxe6 {[%clk 0:00:59.4]} 14. fxe6
{[%clk 0:01:35.3]} 14... g5 {[%clk 0:00:53.1]} 15. Ne2 {[%clk 0:00:38.8]} 15...
Neg6 {[%clk 0:00:52.3]} 16. f3 {[%clk 0:00:24.7]} 16... Nxg2 {[%clk 0:00:50.9]}
17. Kxg2 {[%clk 0:00:24.5]} 17... Nh4+ {[%clk 0:00:47.7]} 18. Kh1 {[%clk
0:00:22.5]} 18... Nxf3 {[%clk 0:00:45.7]} 19. Ng3 {[%clk 0:00:21.3]} 19... g4
{[%clk 0:00:46]} 20. Nf5 {[%clk 0:00:21]} 20... Rxf5 {[%clk 0:00:45]} 21. exf5
{[%clk 0:00:20.8]} 21... Qh4 {[%clk 0:00:31.3]} 22. Rxf3 {[%clk 0:00:18.2]}
22... gxf3 {[%clk 0:00:32.2]} 23. Qxf3 {[%clk 0:00:15.9]} 23... Qe1+ {[%clk
0:00:27.1]} 24. Kg2 {[%clk 0:00:15.9]} 24... Rf8 {[%clk 0:00:27.7]} 25. b3
{[%clk 0:00:12.3]} 25... e4 {[%clk 0:00:23.5]} 26. Qg4 {[%clk 0:00:12.4]} 26...
Qc3 {[%clk 0:00:15.3]} 27. Rb1 {[%clk 0:00:10.4]} 27... Qc2+ {[%clk 0:00:14.8]}
28. Kh3 {[%clk 0:00:05.5]} 28... Qxb1 {[%clk 0:00:13.4]} 29. Bh6 {[%clk
0:00:05.4]} 29... Qa1 {[%clk 0:00:06.6]} 30. e7 {[%clk 0:00:04.6]} 30... Re8
{[%clk 0:00:04.9]} 31. Bxg7 {[%clk 0:00:01.7]} 31... Qxg7 {[%clk 0:00:04.7]} 32.
Qxe4 {[%clk 0:00:01.8]} 32... Qxe7 {[%clk 0:00:04.2]} 33. Qg4+ {[%clk
0:00:01.7]} 33... Qg7 {[%clk 0:00:04.3]} 34. Qf4 {[%clk 0:00:02.1]} 34... Rf8
{[%clk 0:00:03.9]} 35. Qe4 {[%clk 0:00:01.6]} 35... Qe5 {[%clk 0:00:03.6]} 36.
Qg4+ {[%clk 0:00:01.6]} 36... Kh8 {[%clk 0:00:04.1]} 37. Qh5 {[%clk 0:00:01.8]}
37... Qxf5+ {[%clk 0:00:04.3]} 38. Qxf5 {[%clk 0:00:01.8]} 38... Rxf5 {[%clk
0:00:05.2]} 39. Kg4 {[%clk 0:00:02.7]} 39... Re5 {[%clk 0:00:05.6]} 40. Kf4
{[%clk 0:00:03.1]} 40... Re1 {[%clk 0:00:06.2]} 41. h4 {[%clk 0:00:03.6]} 41...
Ra1 {[%clk 0:00:06.2]} 0-1

[Event "*** Titled Tuesday Blitz"]
[Site "Chess.com"]
[Date "2021.04.06"]
[Round "7"]
[White "DenLaz"]
[Black "Omk124"]
[Result "1-0"]
[WhiteElo "2828"]
[BlackElo "2588"]
[TimeControl "180+1"]
[EndTime "11:18:59 PDT"]
[Termination "DenLaz won by resignation"]

1. d4 {[%clk 0:03:00.9]} 1... Nf6 {[%clk 0:02:59.7]} 2. c4 {[%clk 0:03:01.4]}
2... g6 {[%clk 0:02:59]} 3. Nc3 {[%clk 0:03:00.9]} 3... d5 {[%clk 0:02:58.8]} 4.
Bf4 {[%clk 0:03:00.7]} 4... Bg7 {[%clk 0:02:58.3]} 5. e3 {[%clk 0:03:01]} 5...
O-O {[%clk 0:02:54.4]} 6. cxd5 {[%clk 0:03:00.9]} 6... Nxd5 {[%clk 0:02:52.9]}
7. Nxd5 {[%clk 0:03:01]} 7... Qxd5 {[%clk 0:02:53.8]} 8. Bxc7 {[%clk 0:03:01.7]}
8... Na6 {[%clk 0:02:54.2]} 9. Bxa6 {[%clk 0:03:01.1]} 9... Qxg2 {[%clk
0:02:54.1]} 10. Qf3 {[%clk 0:03:01.4]} 10... Qxf3 {[%clk 0:02:54.6]} 11. Nxf3
{[%clk 0:03:02.1]} 11... bxa6 {[%clk 0:02:55.5]} 12. Rc1 {[%clk 0:03:02.3]}
12... Be6 {[%clk 0:02:53.7]} 13. b3 {[%clk 0:02:48.3]} 13... Rfc8 {[%clk
0:02:53.3]} 14. O-O {[%clk 0:02:36.9]} 14... Bf6 {[%clk 0:02:31.6]} 15. Rc5
{[%clk 0:02:29]} 15... Bg4 {[%clk 0:02:28.2]} 16. Nd2 {[%clk 0:02:25.1]} 16...
Kf8 {[%clk 0:01:45.3]} 17. Rfc1 {[%clk 0:02:20.3]} 17... Ke8 {[%clk 0:01:45.7]}
18. f3 {[%clk 0:01:57.1]} 18... Bf5 {[%clk 0:01:37.6]} 19. Kf2 {[%clk
0:01:52.4]} 19... Bd3 {[%clk 0:01:34.7]} 20. Ne4 {[%clk 0:01:36.6]} 20... Bxe4
{[%clk 0:01:22]} 21. fxe4 {[%clk 0:01:37.5]} 21... e6 {[%clk 0:01:22.8]} 22. Ke2
{[%clk 0:01:34.8]} 22... Be7 {[%clk 0:01:22.9]} 23. R5c4 {[%clk 0:01:34.2]}
23... Kd7 {[%clk 0:01:23.5]} 24. Kd3 {[%clk 0:01:33]} 24... f6 {[%clk
0:01:17.3]} 25. Bg3 {[%clk 0:01:27.3]} 25... h5 {[%clk 0:01:14.8]} 26. h3 {[%clk
0:01:17]} 26... Rxc4 {[%clk 0:01:13.7]} 27. bxc4 {[%clk 0:01:16.8]} 27... Rc8
{[%clk 0:00:52.2]} 28. Rb1 {[%clk 0:01:13.2]} 28... Bd6 {[%clk 0:00:50.2]} 29.
Bxd6 {[%clk 0:01:10.7]} 29... Kxd6 {[%clk 0:00:50.4]} 30. c5+ {[%clk 0:01:11.2]}
30... Kd7 {[%clk 0:00:50.4]} 31. Kc4 {[%clk 0:01:11.8]} 31... g5 {[%clk
0:00:49.5]} 32. d5 {[%clk 0:01:10.8]} 32... exd5+ {[%clk 0:00:50]} 33. exd5
{[%clk 0:01:11.7]} 33... g4 {[%clk 0:00:50.6]} 34. hxg4 {[%clk 0:00:55.8]} 34...
hxg4 {[%clk 0:00:51.5]} 35. Rh1 {[%clk 0:00:55.2]} 35... Rg8 {[%clk 0:00:46.4]}
36. Rh7+ {[%clk 0:00:52.9]} 36... Kc8 {[%clk 0:00:46.7]} 37. c6 {[%clk
0:00:33.5]} 37... g3 {[%clk 0:00:46]} 38. Rh1 {[%clk 0:00:32.9]} 38... g2 {[%clk
0:00:40.4]} 39. Rg1 {[%clk 0:00:32.9]} 39... Kc7 {[%clk 0:00:34.9]} 40. Kc5
{[%clk 0:00:32.6]} 40... Rg5 {[%clk 0:00:35.5]} 41. e4 {[%clk 0:00:29.1]} 41...
a5 {[%clk 0:00:23.7]} 42. a4 {[%clk 0:00:24]} 42... a6 {[%clk 0:00:23.3]} 43.
Kd4 {[%clk 0:00:24.5]} 43... Rg4 {[%clk 0:00:22.7]} 44. Ke3 {[%clk 0:00:23.8]}
44... Kd6 {[%clk 0:00:20.1]} 45. Kf3 {[%clk 0:00:24]} 45... f5 {[%clk 0:00:20]}
46. exf5 {[%clk 0:00:19.7]} 46... Rxa4 {[%clk 0:00:19.9]} 47. Rxg2 {[%clk
0:00:18.6]} 47... Kxd5 {[%clk 0:00:20.4]} 48. Rc2 {[%clk 0:00:16.5]} 48... Ra3+
{[%clk 0:00:20.4]} 49. Kf4 {[%clk 0:00:16.3]} 49... Ra4+ {[%clk 0:00:20.5]} 50.
Kg5 {[%clk 0:00:16.7]} 50... Ra1 {[%clk 0:00:19.1]} 51. c7 {[%clk 0:00:16.5]}
51... Rg1+ {[%clk 0:00:19.8]} 52. Kf6 {[%clk 0:00:16.7]} 52... Rg8 {[%clk
0:00:19.7]} 53. c8=Q {[%clk 0:00:17.1]} 53... Rxc8 {[%clk 0:00:20.5]} 54. Rxc8
{[%clk 0:00:17.6]} 54... a4 {[%clk 0:00:21.4]} 55. Ra8 {[%clk 0:00:18.2]} 55...
a3 {[%clk 0:00:22.3]} 56. Rxa6 {[%clk 0:00:18.8]} 1-0

[Event "*** Titled Tuesday Blitz"]
[Site "Chess.com"]
[Date "2021.04.06"]
[Round "7"]
[White "elvidirris"]
[Black "esrosenberg"]
[Result "0-1"]
[WhiteElo "2013"]
[BlackElo "2211"]
[TimeControl "180+1"]
[EndTime "11:19:00 PDT"]
[Termination "esrosenberg won by resignation"]

1. e4 {[%clk 0:03:00.9]} 1... e5 {[%clk 0:02:59.6]} 2. Nf3 {[%clk 0:03:00.1]}
2... Nc6 {[%clk 0:03:00]} 3. Bb5 {[%clk 0:02:59.9]} 3... a6 {[%clk 0:02:59.9]}
4. Ba4 {[%clk 0:02:59.7]} 4... Nf6 {[%clk 0:02:58]} 5. O-O {[%clk 0:02:58.2]}
5... Be7 {[%clk 0:02:58]} 6. Re1 {[%clk 0:02:56.8]} 6... b5 {[%clk 0:02:58.4]}
7. Bb3 {[%clk 0:02:56.6]} 7... O-O {[%clk 0:02:59.3]} 8. c3 {[%clk 0:02:52.7]}
8... d5 {[%clk 0:02:59.7]} 9. exd5 {[%clk 0:02:52.8]} 9... Nxd5 {[%clk
0:03:00.1]} 10. Nxe5 {[%clk 0:02:52.5]} 10... Nxe5 {[%clk 0:03:00.6]} 11. Rxe5
{[%clk 0:02:52.4]} 11... c6 {[%clk 0:03:01.2]} 12. d4 {[%clk 0:02:51.6]} 12...
Bd6 {[%clk 0:03:00.9]} 13. Re1 {[%clk 0:02:52]} 13... Qh4 {[%clk 0:03:00.9]} 14.
g3 {[%clk 0:02:52]} 14... Qh3 {[%clk 0:03:01.2]} 15. Be3 {[%clk 0:02:48.4]}
15... Ra7 {[%clk 0:03:00.6]} 16. Qd3 {[%clk 0:02:29.5]} 16... f5 {[%clk
0:02:37.4]} 17. Bxd5+ {[%clk 0:02:19.8]} 17... cxd5 {[%clk 0:02:36.5]} 18. f4
{[%clk 0:02:19.8]} 18... Re7 {[%clk 0:02:26.6]} 19. Nd2 {[%clk 0:02:16.4]} 19...
g5 {[%clk 0:02:11.6]} 20. Qf1 {[%clk 0:02:04.8]} 20... Qxf1+ {[%clk 0:01:18]}
21. Nxf1 {[%clk 0:02:02.2]} 21... Rfe8 {[%clk 0:01:12]} 22. Kf2 {[%clk
0:01:58.4]} 22... b4 {[%clk 0:01:08.6]} 23. fxg5 {[%clk 0:01:55.9]} 23... bxc3
{[%clk 0:01:04.5]} 24. bxc3 {[%clk 0:01:56.8]} 24... Ba3 {[%clk 0:00:34.4]} 25.
Rab1 {[%clk 0:01:50.9]} 25... Bd7 {[%clk 0:00:24]} 26. Rb3 {[%clk 0:01:49.4]}
26... Bd6 {[%clk 0:00:18.3]} 27. Rb6 {[%clk 0:01:38.8]} 27... Re6 {[%clk
0:00:18.2]} 28. h4 {[%clk 0:01:30.2]} 28... Bxg3+ {[%clk 0:00:16.9]} 29. Nxg3
{[%clk 0:01:26.5]} 29... Rxb6 {[%clk 0:00:17.4]} 30. Nh5 {[%clk 0:01:20.6]}
30... Kf7 {[%clk 0:00:16.3]} 31. Nf6 {[%clk 0:01:19.2]} 31... Re7 {[%clk
0:00:14.2]} 32. Nxd5 {[%clk 0:01:13.8]} 32... Rb2+ {[%clk 0:00:14.2]} 33. Kf3
{[%clk 0:01:11.2]} 33... Re4 {[%clk 0:00:12.6]} 34. Rh1 {[%clk 0:01:02.6]} 34...
Bc6 {[%clk 0:00:12]} 35. c4 {[%clk 0:00:59.7]} 35... Bxd5 {[%clk 0:00:10.7]} 36.
cxd5 {[%clk 0:01:00.6]} 36... Rxa2 {[%clk 0:00:10.6]} 37. Rb1 {[%clk 0:00:49.8]}
37... Ra3 {[%clk 0:00:10.9]} 38. Re1 {[%clk 0:00:43.6]} 38... a5 {[%clk
0:00:10.1]} 39. d6 {[%clk 0:00:43.1]} 39... Ke8 {[%clk 0:00:09.6]} 40. Kf2
{[%clk 0:00:41.5]} 40... Kd7 {[%clk 0:00:09.1]} 41. h5 {[%clk 0:00:37.9]} 41...
f4 {[%clk 0:00:08.3]} 42. g6 {[%clk 0:00:33.8]} 42... hxg6 {[%clk 0:00:07.5]}
43. hxg6 {[%clk 0:00:34.7]} 43... fxe3+ {[%clk 0:00:07.6]} 44. Kf3 {[%clk
0:00:34.9]} 44... Re6 {[%clk 0:00:06.5]} 45. g7 {[%clk 0:00:34.7]} 45... e2+
{[%clk 0:00:06.6]} 46. Kf4 {[%clk 0:00:28.6]} 46... Rg6 {[%clk 0:00:07.1]} 47.
Rb1 {[%clk 0:00:15.4]} 47... e1=Q {[%clk 0:00:07.1]} 48. Rxe1 {[%clk 0:00:14.6]}
48... Rxg7 {[%clk 0:00:07.4]} 49. Kf5 {[%clk 0:00:12.5]} 49... Kxd6 {[%clk
0:00:07.4]} 0-1

[Event "*** Titled Tuesday Blitz"]
[Site "Chess.com"]
[Date "2021.04.06"]
[Round "7"]
[White "Meri-Arabidze"]
[Black "I_Enchev"]
[Result "0-1"]
[WhiteElo "2629"]
[BlackElo "2510"]
[TimeControl "180+1"]
[EndTime "11:19:02 PDT"]
[Termination "I_Enchev won by checkmate"]

1. Nf3 {[%clk 0:03:00.9]} 1... Nf6 {[%clk 0:02:59.3]} 2. d4 {[%clk 0:03:01.1]}
2... d5 {[%clk 0:02:58.6]} 3. c4 {[%clk 0:03:00.2]} 3... e6 {[%clk 0:02:58.6]}
4. Nc3 {[%clk 0:03:01.1]} 4... a6 {[%clk 0:02:58.8]} 5. g3 {[%clk 0:02:59.2]}
5... dxc4 {[%clk 0:02:58.5]} 6. a4 {[%clk 0:02:59.2]} 6... b6 {[%clk 0:02:54.2]}
7. Bg2 {[%clk 0:02:59.1]} 7... Bb7 {[%clk 0:02:54.7]} 8. O-O {[%clk 0:02:58.7]}
8... Nbd7 {[%clk 0:02:54.6]} 9. e3 {[%clk 0:02:58.8]} 9... c5 {[%clk 0:02:54.4]}
10. Qe2 {[%clk 0:02:58.6]} 10... cxd4 {[%clk 0:02:54.3]} 11. exd4 {[%clk
0:02:54.6]} 11... Rc8 {[%clk 0:02:53.6]} 12. Rd1 {[%clk 0:02:36.1]} 12... Be7
{[%clk 0:02:51.5]} 13. Ne5 {[%clk 0:02:32.3]} 13... Bxg2 {[%clk 0:02:49.9]} 14.
Kxg2 {[%clk 0:02:32.5]} 14... Qc7 {[%clk 0:02:46.2]} 15. Bf4 {[%clk 0:02:31.8]}
15... Nxe5 {[%clk 0:02:44.2]} 16. dxe5 {[%clk 0:02:20]} 16... Qc6+ {[%clk
0:02:42.2]} 17. Kg1 {[%clk 0:02:16.9]} 17... Nd7 {[%clk 0:02:36.3]} 18. Qg4
{[%clk 0:02:15.6]} 18... g6 {[%clk 0:02:31.9]} 19. Re1 {[%clk 0:01:48.7]} 19...
h5 {[%clk 0:02:30.3]} 20. Qe2 {[%clk 0:01:46.8]} 20... h4 {[%clk 0:02:30]} 21.
Ne4 {[%clk 0:01:46.1]} 21... hxg3 {[%clk 0:02:29.7]} 22. Bxg3 {[%clk 0:01:36.4]}
22... Rh5 {[%clk 0:02:17]} 23. Nd6+ {[%clk 0:01:33.8]} 23... Bxd6 {[%clk
0:02:16.1]} 24. exd6 {[%clk 0:01:34.7]} 24... Kf8 {[%clk 0:02:09]} 25. Rad1
{[%clk 0:01:33.8]} 25... Qxa4 {[%clk 0:02:01]} 26. Qf3 {[%clk 0:01:22.2]} 26...
Qc6 {[%clk 0:01:56.4]} 27. Qf4 {[%clk 0:01:14.4]} 27... Kg8 {[%clk 0:01:52.8]}
28. Qg4 {[%clk 0:01:12.5]} 28... Kh7 {[%clk 0:01:29.9]} 29. Re3 {[%clk
0:01:11.9]} 29... e5 {[%clk 0:01:20.4]} 30. f4 {[%clk 0:00:47.3]} 30... f5
{[%clk 0:01:17.2]} 31. Qe2 {[%clk 0:00:46.5]} 31... e4 {[%clk 0:01:16.4]} 32.
Qd2 {[%clk 0:00:44.3]} 32... Qc5 {[%clk 0:01:13.9]} 33. Bf2 {[%clk 0:00:43.6]}
33... Qc6 {[%clk 0:01:06.9]} 34. Rg3 {[%clk 0:00:42.9]} 34... b5 {[%clk
0:01:01.2]} 35. Qd4 {[%clk 0:00:42.6]} 35... Re8 {[%clk 0:01:00.9]} 36. Be3
{[%clk 0:00:39.3]} 36... Re6 {[%clk 0:01:00.1]} 37. Rd2 {[%clk 0:00:39.2]} 37...
a5 {[%clk 0:00:57.3]} 38. Qa7 {[%clk 0:00:38.7]} 38... Rxd6 {[%clk 0:00:54]} 39.
Rgg2 {[%clk 0:00:38.4]} 39... Rd3 {[%clk 0:00:52.8]} 40. Rge2 {[%clk 0:00:14.5]}
40... Rh3 {[%clk 0:00:46.2]} 41. Bf2 {[%clk 0:00:10.8]} 41... a4 {[%clk
0:00:40.5]} 42. Kg2 {[%clk 0:00:07.9]} 42... Rxd2 {[%clk 0:00:33.2]} 43. Rxd2
{[%clk 0:00:06.1]} 43... Rd3 {[%clk 0:00:23.2]} 44. Re2 {[%clk 0:00:05.6]} 44...
e3+ {[%clk 0:00:22.1]} 45. Kf1 {[%clk 0:00:03.5]} 45... Rd1+ {[%clk 0:00:20.3]}
46. Be1 {[%clk 0:00:00.9]} 46... Qh1# {[%clk 0:00:15.7]} 0-1

[Event "*** Titled Tuesday Blitz"]
[Site "Chess.com"]
[Date "2021.04.06"]
[Round "7"]
[White "Margency"]
[Black "Nozdrachev_Leonid"]
[Result "1-0"]
[WhiteElo "2725"]
[BlackElo "2570"]
[TimeControl "180+1"]
[EndTime "11:19:04 PDT"]
[Termination "Margency won on time"]

1. e4 {[%clk 0:03:00.9]} 1... c6 {[%clk 0:02:59.5]} 2. d4 {[%clk 0:03:01]} 2...
d5 {[%clk 0:02:59.1]} 3. exd5 {[%clk 0:03:01.9]} 3... cxd5 {[%clk 0:02:59]} 4.
c4 {[%clk 0:03:02.8]} 4... Nf6 {[%clk 0:02:57.3]} 5. Nc3 {[%clk 0:03:03.3]} 5...
g6 {[%clk 0:02:57.1]} 6. cxd5 {[%clk 0:03:03.2]} 6... Nxd5 {[%clk 0:02:56.6]} 7.
Qb3 {[%clk 0:02:51.7]} 7... Nxc3 {[%clk 0:02:53.7]} 8. bxc3 {[%clk 0:02:50.3]}
8... Bg7 {[%clk 0:02:53.3]} 9. Nf3 {[%clk 0:02:42.6]} 9... O-O {[%clk
0:02:52.8]} 10. Be2 {[%clk 0:02:41.4]} 10... Nc6 {[%clk 0:02:49.9]} 11. O-O
{[%clk 0:02:41.4]} 11... e5 {[%clk 0:02:49.7]} 12. Bg5 {[%clk 0:02:36.7]} 12...
Qb6 {[%clk 0:02:45]} 13. d5 {[%clk 0:02:33.9]} 13... e4 {[%clk 0:02:19.1]} 14.
dxc6 {[%clk 0:02:26.6]} 14... exf3 {[%clk 0:02:18.4]} 15. Bxf3 {[%clk
0:02:26.6]} 15... bxc6 {[%clk 0:02:13]} 16. Qxb6 {[%clk 0:02:01.6]} 16... axb6
{[%clk 0:02:10.8]} 17. Bxc6 {[%clk 0:02:02.1]} 17... Ba6 {[%clk 0:02:06.1]} 18.
Bxa8 {[%clk 0:01:37]} 18... Bxf1 {[%clk 0:02:02.3]} 19. Bd5 {[%clk 0:01:37.3]}
19... Bd3 {[%clk 0:01:49.7]} 20. Rd1 {[%clk 0:01:31.1]} 20... Bc2 {[%clk
0:01:20.7]} 21. Rd2 {[%clk 0:01:25.2]} 21... Re8 {[%clk 0:01:18.1]} 22. Be3
{[%clk 0:01:04.2]} 22... Ba4 {[%clk 0:00:41.7]} 23. c4 {[%clk 0:01:01.3]} 23...
Bh6 {[%clk 0:00:40]} 24. Rd3 {[%clk 0:00:56]} 24... Bxe3 {[%clk 0:00:34.3]} 25.
Rxe3 {[%clk 0:00:55.7]} 25... Rxe3 {[%clk 0:00:25.6]} 26. fxe3 {[%clk
0:00:56.6]} 26... Kf8 {[%clk 0:00:25.3]} 27. Kf2 {[%clk 0:00:55.5]} 27... f5
{[%clk 0:00:24.8]} 28. e4 {[%clk 0:00:49.2]} 28... fxe4 {[%clk 0:00:23.9]} 29.
Bxe4 {[%clk 0:00:49.5]} 29... Ke7 {[%clk 0:00:24]} 30. Ke3 {[%clk 0:00:49.8]}
30... Kd6 {[%clk 0:00:24.2]} 31. Kd4 {[%clk 0:00:50.2]} 31... Bd1 {[%clk
0:00:18.7]} 32. h4 {[%clk 0:00:48.3]} 32... Bg4 {[%clk 0:00:17.8]} 33. a3 {[%clk
0:00:40.6]} 33... Bd1 {[%clk 0:00:17.7]} 34. Bf3 {[%clk 0:00:38.6]} 34... Bc2
{[%clk 0:00:16]} 35. g4 {[%clk 0:00:38.5]} 35... Ba4 {[%clk 0:00:12.9]} 36. g5
{[%clk 0:00:35.8]} 36... Bc2 {[%clk 0:00:12.3]} 37. Bd5 {[%clk 0:00:34.8]} 37...
Bd1 {[%clk 0:00:12.2]} 38. Bg8 {[%clk 0:00:34.6]} 38... Ke7 {[%clk 0:00:11.3]}
39. Ke5 {[%clk 0:00:33.4]} 39... Bb3 {[%clk 0:00:09.1]} 40. Kd4 {[%clk
0:00:20.6]} 40... Ba2 {[%clk 0:00:07]} 41. Bd5 {[%clk 0:00:20.2]} 41... Kd6
{[%clk 0:00:06.7]} 42. Bg8 {[%clk 0:00:18.7]} 42... Ke7 {[%clk 0:00:05.3]} 43.
Kc3 {[%clk 0:00:18.4]} 43... Bb1 {[%clk 0:00:03.6]} 44. Kb4 {[%clk 0:00:18.2]}
44... Kd6 {[%clk 0:00:03.9]} 45. Kb5 {[%clk 0:00:17.8]} 45... Kc7 {[%clk
0:00:04.2]} 46. c5 {[%clk 0:00:18]} 46... bxc5 {[%clk 0:00:03.3]} 47. Kxc5
{[%clk 0:00:18.4]} 47... Bf5 {[%clk 0:00:02.6]} 48. Bxh7 {[%clk 0:00:18.5]}
48... Kd7 {[%clk 0:00:02.7]} 49. h5 {[%clk 0:00:18.8]} 49... gxh5 {[%clk
0:00:02.5]} 50. Bxf5+ {[%clk 0:00:18.8]} 1-0

[Event "*** Titled Tuesday Blitz"]
[Site "Chess.com"]
[Date "2021.04.06"]
[Round "7"]
[White "elextranjero00"]
[Black "thechesscorner64"]
[Result "1/2-1/2"]
[WhiteElo "2578"]
[BlackElo "2424"]
[TimeControl "180+1"]
[EndTime "11:19:04 PDT"]
[Termination "Game drawn by agreement"]

1. d4 {[%clk 0:03:00.9]} 1... Nf6 {[%clk 0:02:59.5]} 2. c4 {[%clk 0:03:00.4]}
2... e6 {[%clk 0:02:59.6]} 3. Nc3 {[%clk 0:02:58.3]} 3... Bb4 {[%clk 0:02:59.4]}
4. e3 {[%clk 0:02:56.4]} 4... b6 {[%clk 0:02:59.4]} 5. Ne2 {[%clk 0:02:52.1]}
5... Ne4 {[%clk 0:02:59.5]} 6. Bd2 {[%clk 0:02:50.7]} 6... Nxd2 {[%clk
0:02:59.3]} 7. Qxd2 {[%clk 0:02:50.5]} 7... O-O {[%clk 0:02:58.1]} 8. a3 {[%clk
0:02:48.9]} 8... Be7 {[%clk 0:02:58.1]} 9. Nf4 {[%clk 0:02:31.1]} 9... Bb7
{[%clk 0:02:56.8]} 10. d5 {[%clk 0:02:28.5]} 10... e5 {[%clk 0:02:56.6]} 11. Nd3
{[%clk 0:02:28]} 11... d6 {[%clk 0:02:55.2]} 12. g3 {[%clk 0:02:18.6]} 12... a5
{[%clk 0:02:54.8]} 13. Bg2 {[%clk 0:02:14.7]} 13... f5 {[%clk 0:02:54.7]} 14.
O-O {[%clk 0:02:14.4]} 14... Nd7 {[%clk 0:02:53.9]} 15. b4 {[%clk 0:02:08.3]}
15... Bf6 {[%clk 0:02:39]} 16. e4 {[%clk 0:02:02]} 16... f4 {[%clk 0:02:08.1]}
17. Rab1 {[%clk 0:01:36.9]} 17... axb4 {[%clk 0:02:07.1]} 18. axb4 {[%clk
0:01:35.6]} 18... g5 {[%clk 0:02:05.6]} 19. c5 {[%clk 0:01:30.7]} 19... bxc5
{[%clk 0:01:56.7]} 20. bxc5 {[%clk 0:01:28.3]} 20... Ba6 {[%clk 0:01:57.1]} 21.
cxd6 {[%clk 0:01:19.4]} 21... cxd6 {[%clk 0:01:53.6]} 22. Rfc1 {[%clk
0:00:57.9]} 22... Bxd3 {[%clk 0:01:52.6]} 23. Qxd3 {[%clk 0:00:57.7]} 23... Nc5
{[%clk 0:01:53.5]} 24. Qe2 {[%clk 0:00:56.2]} 24... Kh8 {[%clk 0:01:40.4]} 25.
Nb5 {[%clk 0:00:44.6]} 25... Qd7 {[%clk 0:01:28.4]} 26. Qc2 {[%clk 0:00:36.9]}
26... Rfb8 {[%clk 0:01:14.7]} 27. Nc3 {[%clk 0:00:32.8]} 27... g4 {[%clk
0:01:09.7]} 28. Rxb8+ {[%clk 0:00:31]} 28... Rxb8 {[%clk 0:01:09.7]} 29. Rb1
{[%clk 0:00:31.4]} 29... Qa7 {[%clk 0:01:06.8]} 30. Rxb8+ {[%clk 0:00:30.4]}
30... Qxb8 {[%clk 0:01:07.4]} 31. Bf1 {[%clk 0:00:26.8]} 31... Qb4 {[%clk
0:01:01.9]} 32. Be2 {[%clk 0:00:18]} 32... h5 {[%clk 0:01:01.5]} 33. h3 {[%clk
0:00:14.3]} 33... fxg3 {[%clk 0:01:00.2]} 34. fxg3 {[%clk 0:00:14.5]} 34... Qd4+
{[%clk 0:01:00.5]} 35. Kg2 {[%clk 0:00:14.1]} 35... gxh3+ {[%clk 0:00:59.8]} 36.
Kxh3 {[%clk 0:00:14.2]} 36... Qf2 {[%clk 0:00:53.7]} 37. Nd1 {[%clk 0:00:13.9]}
37... Qg1 {[%clk 0:00:51.5]} 38. Bf3 {[%clk 0:00:14.3]} 38... h4 {[%clk
0:00:49.4]} 39. Qg2 {[%clk 0:00:13.5]} 39... Qxg2+ {[%clk 0:00:44.9]} 40. Kxg2
{[%clk 0:00:12.9]} 40... hxg3 {[%clk 0:00:45.8]} 41. Kxg3 {[%clk 0:00:12.8]}
41... Kg7 {[%clk 0:00:42.8]} 42. Nf2 {[%clk 0:00:12.3]} 42... Bg5 {[%clk
0:00:37.8]} 43. Kg2 {[%clk 0:00:08.3]} 43... Bf4 {[%clk 0:00:35.2]} 44. Kf1
{[%clk 0:00:07.1]} 44... Kf6 {[%clk 0:00:33.2]} 45. Ke2 {[%clk 0:00:07.2]} 45...
Kg5 {[%clk 0:00:21.5]} 46. Nd3 {[%clk 0:00:07.7]} 46... Nxd3 {[%clk 0:00:20.8]}
47. Kxd3 {[%clk 0:00:08.6]} 47... Kf6 {[%clk 0:00:20.6]} 48. Bd1 {[%clk
0:00:08.5]} 48... Ke7 {[%clk 0:00:20.8]} 49. Bc2 {[%clk 0:00:09.4]} 49... Kd8
{[%clk 0:00:18.2]} 50. Bd1 {[%clk 0:00:10.3]} 50... Kc7 {[%clk 0:00:18.6]} 51.
Bc2 {[%clk 0:00:09.6]} 1/2-1/2